bitfinex/quotes_ETHUSD_20251118
["timestamp","ask_amount","ask_price","bid_price","bid_amount"]
[1763442008691,0.303,3017.6,3017.0,1.1883452]
[1763442009588,0.303,3017.6,3017.1,1.1883452]
[1763442009986,0.484,3017.5,3017.1,1.1883452]
[1763442010332,0.90699264,3017.4,3016.8,1.1883452]
[1763442010716,1.08979264,3016.9,3016.6,1.1883452]
[1763442010904,1.08979264,3016.9,3016.0,2.37335838]
[1763442010905,0.303,3016.8,3016.0,0.001]
[1763442011102,0.90699264,3016.3,3016.0,0.001]
[1763442011724,0.484,3016.2,3016.0,0.001]
[1763442012088,0.484,3016.1,3016.0,0.001]
[1763442012422,0.90699264,3016.3,3016.0,0.001]
[1763442012724,0.484,3016.2,3016.0,0.001]
[1763442013306,1.00572332,3016.2,3016.0,0.001]
[1763442013508,0.52172332,3016.2,3016.0,0.001]
[1763442013926,0.52172332,3016.2,3016.1,0.7112815]
[1763442014327,1.00572332,3016.2,3016.0,0.001]
[1763442014506,0.52172332,3016.2,3016.0,0.001]
[1763442014842,1.00572332,3016.2,3016.0,0.001]
[1763442015043,0.52172332,3016.2,3016.0,0.001]
[1763442015406,1.198,3016.1,3016.0,0.001]
[1763442015614,1.198,3016.1,3016.0,1.89994452]
[1763442015615,1.5,3016.1,3016.0,1.89994452]
[1763442015847,0.52172332,3016.2,3016.0,2.08993897]
[1763442016048,0.302,3016.1,3016.0,0.001]
[1763442016366,0.302,3016.1,3016.0,0.71131263]
[1763442016511,0.302,3016.1,3016.0,1.17951263]
[1763442017519,0.52172332,3016.2,3016.0,1.17951263]
[1763442017726,0.52172332,3016.2,3016.1,1.17851263]
[1763442017921,0.52172332,3016.2,3016.1,0.71031263]
[1763442018133,0.52172332,3016.2,3016.1,1.17851263]
[1763442018451,0.52172332,3016.2,3016.1,1.89498476]
[1763442018625,0.82372332,3016.2,3016.1,2.36318476]
[1763442018807,0.52172332,3016.2,3016.1,1.41493111]
[1763442019013,0.82372332,3016.2,3016.1,1.17851263]
[1763442019435,0.82372332,3016.2,3016.1,1.17971263]
[1763442020549,0.302,3016.2,3016.1,1.35971263]
[1763442020770,0.302,3016.2,3016.1,0.89031263]
[1763442020951,0.302,3016.2,3016.1,2.48753331]
[1763442021151,0.302,3016.2,3016.1,1.89531875]
[1763442021361,0.302,3016.2,3016.1,0.89031263]
[1763442021524,0.302,3016.2,3016.1,1.35971263]
[1763442021918,0.302,3016.2,3016.1,0.89031263]
[1763442022118,0.302,3016.2,3016.1,0.71031263]
[1763442022961,0.7997,3016.2,3016.1,0.71031263]
[1763442023255,0.405504,3016.1,3015.6,0.001]
[1763442023451,0.90699264,3015.7,3015.6,0.001]
[1763442023918,1.42876776,3015.7,3015.6,0.001]
[1763442025056,1.73076776,3015.7,3015.6,0.001]
[1763442025361,4.12676776,3015.7,3015.6,0.71290104]
[1763442025556,1.73076776,3015.7,3015.6,0.001]
[1763442025918,0.82377512,3015.7,3015.6,0.4704]
[1763442026444,0.82377512,3015.7,3015.6,0.001]
[1763442026832,0.82377512,3015.7,3015.6,0.4704]
[1763442027248,0.82377512,3015.7,3015.6,1.65732081]
[1763442027745,0.82377512,3015.7,3015.6,1.18792081]
[1763442027940,0.82377512,3015.7,3015.6,0.4704]
[1763442028159,0.82377512,3015.7,3015.6,1.65732081]
[1763442028453,0.82377512,3015.7,3015.6,0.81717046]
[1763442028656,0.82377512,3015.7,3015.6,0.001]
[1763442028856,0.82377512,3015.7,3015.6,0.4704]
[1763442029155,0.82377512,3015.7,3015.6,1.18638544]
[1763442029375,0.82377512,3015.7,3015.6,0.001]
[1763442029725,1.32147512,3015.7,3015.6,0.001]
[1763442030552,0.82377512,3015.7,3015.6,0.001]
[1763442030755,1.32147512,3015.7,3015.6,0.001]
[1763442032034,0.82377512,3015.7,3015.6,0.001]
[1763442032335,1.32147512,3015.7,3015.6,0.001]
[1763442033025,0.82377512,3015.7,3015.6,0.001]
[1763442033968,0.302,3015.7,3015.6,0.001]
[1763442035327,2.7,3015.7,3015.6,0.001]
[1763442035756,2.7,3015.7,3015.6,0.89070692]
[1763442036065,1.5,3015.7,3015.6,0.4969]
[1763442036276,1.70519264,3015.7,3015.6,0.001]
[1763442036430,0.002,3016.2,3015.6,0.001]
[1763442036624,0.301,3016.1,3015.6,0.001]
[1763442037030,0.4972,3016.0,3015.6,0.001]
[1763442037569,1.01893313,3016.0,3015.6,0.001]
[1763442038549,0.52173313,3016.0,3015.6,0.001]
[1763442038760,0.301,3015.9,3015.7,0.8880062]
[1763442039083,0.4825,3015.9,3015.6,0.8890062]
[1763442039238,0.4825,3015.9,3015.6,0.001]
[1763442040191,0.9797,3015.9,3015.6,0.001]
[1763442040394,0.405504,3015.7,3015.5,0.001]
[1763442040599,7.51310332,3015.4,3015.3,0.001]
[1763442041047,8.01030332,3015.4,3015.3,0.001]
[1763442041578,8.01030332,3015.4,3014.2,0.8880062]
[1763442041579,1.31249664,3015.3,3014.2,0.8880062]
[1763442041889,1.31249664,3015.3,3013.4,2.56555838]
[1763442041890,0.405504,3014.9,3014.1,0.8880062]
[1763442042090,0.405504,3014.9,3013.6,0.4959]
[1763442042091,0.90699264,3014.2,3014.0,0.8880062]
[1763442042376,0.90699264,3014.2,3013.4,0.8880062]
[1763442042575,1.40419264,3014.2,3013.3,0.8880062]
[1763442042980,0.90699264,3013.6,3012.6,1.0802062]
[1763442043195,0.301,3013.5,3012.7,0.8880062]
[1763442043352,0.301,3013.5,3012.6,1.0802062]
[1763442043552,0.301,3013.5,3012.6,1.5761062]
[1763442043773,0.301,3013.5,3012.8,0.8880062]
[1763442044091,0.405504,3014.4,3013.1,0.8880062]
[1763442044092,0.90699264,3014.4,3013.1,0.8880062]
[1763442044287,6.20060668,3013.7,3012.9,0.8880062]
[1763442044453,1.31249664,3014.0,3012.6,1.0802062]
[1763442044655,0.405504,3013.8,3012.6,1.0802062]
[1763442045158,0.90699264,3014.0,3012.7,0.8880062]
[1763442045361,2.10599264,3013.9,3012.8,0.03319171]
[1763442045566,1.199,3013.9,3013.0,0.8880062]
[1763442046074,1.199,3013.9,3013.1,0.6096]
[1763442046277,0.17051109,3015.2,3013.1,0.6096]
[1763442046278,0.6787,3014.8,3013.1,1.4976062]
[1763442046476,0.6787,3014.8,3013.6,0.8880062]
[1763442046477,0.301,3014.7,3013.6,0.8880062]
[1763442047463,0.301,3014.7,3013.7,0.4959]
[1763442047664,0.301,3014.7,3013.8,0.8880062]
[1763442048278,0.301,3014.7,3014.0,0.8880062]
[1763442048676,0.301,3014.7,3014.1,0.1922]
[1763442048974,0.301,3014.7,3013.8,0.8880062]
[1763442049163,0.301,3014.7,3013.6,1.18538544]
[1763442049164,0.301,3014.7,3013.6,0.8880062]
[1763442049365,0.301,3014.7,3013.8,0.8880062]
[1763442050301,0.301,3014.7,3013.8,1.3839062]
[1763442050599,0.301,3014.7,3013.9,0.8880062]
[1763442050817,0.301,3014.7,3013.9,1.64083536]
[1763442051101,0.52190291,3014.6,3014.1,0.8880062]
[1763442051406,0.52190291,3014.6,3014.0,0.8880062]
[1763442051761,0.52190291,3014.6,3013.6,2.27414466]
[1763442051762,0.52190291,3014.6,3013.9,0.8880062]
[1763442052005,0.52190291,3014.6,3013.8,0.8880062]
[1763442052202,0.52190291,3014.6,3013.9,1.3839062]
[1763442052500,0.52190291,3014.6,3014.1,0.8880062]
[1763442052678,0.52190291,3014.6,3013.9,0.8880062]
[1763442052863,0.52190291,3014.6,3013.8,0.8880062]
[1763442053068,0.52190291,3014.6,3013.9,0.8880062]
[1763442055270,2.398,3014.5,3013.9,0.8880062]
[1763442055501,3.30499264,3014.5,3013.7,0.8880062]
[1763442055800,1.40419264,3014.5,3013.7,0.8880062]
[1763442056103,1.40419264,3014.5,3014.4,0.1922]
[1763442056104,0.90699264,3014.5,3014.4,0.1922]
[1763442056710,0.90699264,3014.5,3014.1,1.0802062]
[1763442057072,0.90699264,3014.5,3014.1,0.1922]
[1763442057273,0.90699264,3014.5,3013.9,0.8880062]
[1763442057673,0.90699264,3014.5,3014.0,0.8880062]
[1763442057899,0.90367523,3014.5,3013.9,0.8880062]
[1763442058202,0.90367523,3014.5,3014.0,0.8880062]
[1763442058608,0.90367523,3014.5,3014.1,0.1922]
[1763442059869,0.90367523,3014.5,3014.1,1.0802062]
[1763442060209,0.90367523,3014.5,3014.1,0.1922]
[1763442060405,0.90367523,3014.5,3014.2,0.4959]
[1763442060608,0.90367523,3014.5,3014.1,1.0802062]
[1763442060799,0.90367523,3014.5,3014.3,0.4959]
[1763442060993,0.90367523,3014.5,3014.2,0.8880062]
[1763442061306,0.301,3014.7,3014.3,1.3839062]
[1763442061507,0.301,3014.7,3014.5,0.8880062]
[1763442061687,0.301,3014.7,3014.6,0.8880062]
[1763442062605,0.301,3014.7,3014.5,0.8880062]
[1763442062910,0.301,3014.7,3014.6,0.8880062]
[1763442063311,0.301,3014.7,3014.6,0.89014438]
[1763442063475,0.301,3014.7,3014.5,1.18538544]
[1763442063675,0.301,3014.7,3014.6,0.89058599]
[1763442063977,0.7982,3014.7,3014.3,0.89058599]
[1763442064175,0.7982,3014.7,3013.5,2.87025838]
[1763442064176,1.70519264,3014.7,3013.8,0.89058599]
[1763442064375,1.70519264,3014.7,3013.9,0.89058599]
[1763442064376,0.301,3014.7,3013.9,0.89058599]
[1763442064571,0.52197164,3014.5,3013.9,1.09818313]
[1763442064785,0.52197164,3014.5,3014.2,1.18538544]
[1763442064981,0.301,3014.4,3014.2,2.37335838]
[1763442065181,0.1969,3016.9,3014.3,0.95861103]
[1763442065182,1.199,3015.0,3014.3,0.95861103]
[1763442065422,1.5,3014.9,3014.6,2.37284467]
[1763442065605,0.301,3014.9,3014.6,2.37284467]
[1763442065789,0.301,3014.9,3014.7,0.71978447]
[1763442065992,0.301,3014.9,3014.7,1.78067622]
[1763442066595,0.301,3014.9,3014.7,2.26317622]
[1763442066796,0.301,3014.9,3014.8,2.26317622]
[1763442066997,0.301,3014.9,3014.7,1.78067622]
[1763442067200,0.002,3015.2,3014.7,1.78067622]
[1763442067201,0.002,3015.2,3014.8,1.81384591]
[1763442067401,0.002,3015.2,3015.1,1.97297622]
[1763442067710,0.002,3015.2,3015.1,0.6748]
[1763442067711,0.303,3015.2,3015.1,0.6748]
[1763442067889,0.303,3015.2,3015.1,2.45547622]
[1763442068087,0.303,3015.2,3015.0,1.78067622]
[1763442068290,0.303,3015.2,3015.1,0.89032434]
[1763442068591,0.303,3015.2,3014.6,1.78067622]
[1763442068592,0.303,3015.2,3014.8,0.89032434]
[1763442068798,0.303,3015.2,3014.9,0.89032434]
[1763442069121,0.303,3015.2,3014.6,0.89032434]
[1763442069122,0.7725,3015.2,3014.6,0.89032434]
[1763442069329,0.1911,3014.8,3014.6,0.89032434]
[1763442069691,0.303,3015.2,3014.6,0.89032434]
[1763442069892,0.303,3015.2,3014.7,0.89032434]
[1763442070100,0.4695,3015.1,3014.7,0.89032434]
[1763442070296,0.4695,3015.1,3014.5,1.18691338]
[1763442070297,0.1911,3014.8,3014.3,0.89032434]
[1763442070532,0.4695,3015.1,3014.4,0.89032434]
[1763442070699,0.1911,3014.7,3014.3,0.89032434]
[1763442071330,0.1911,3014.7,3014.4,0.89032434]
[1763442071527,0.1911,3014.7,3014.3,0.89032434]
[1763442072098,0.1911,3014.7,3014.4,0.89032434]
[1763442072333,0.303,3015.2,3014.4,0.89032434]
[1763442072507,0.303,3015.2,3014.6,0.89032434]
[1763442072707,0.303,3015.2,3014.7,0.89032434]
[1763442072911,0.303,3015.2,3014.8,0.89032434]
[1763442073332,0.1911,3014.9,3014.7,1.18691338]
[1763442073829,0.002,3015.2,3014.7,1.18691338]
[1763442074040,0.002,3015.2,3015.0,0.89169725]
[1763442074214,0.301,3015.1,3014.9,1.18691338]
[1763442074403,0.301,3015.1,3015.0,1.18691338]
[1763442074830,0.301,3015.1,3015.0,0.8916427]
[1763442074831,0.7705,3015.1,3015.0,0.8916427]
[1763442075035,0.301,3015.1,3015.0,0.8916427]
[1763442075200,2.699,3015.1,3015.0,0.8916427]
[1763442075400,2.699,3015.1,3014.6,1.78067622]
[1763442075401,1.31249664,3015.0,3014.6,0.8916427]
[1763442075602,0.1911,3014.9,3014.6,0.8916427]
[1763442075817,0.6606,3014.9,3014.5,0.8916427]
[1763442076044,0.6606,3014.9,3014.4,0.8916427]
[1763442076216,0.4695,3014.8,3014.4,0.8916427]
[1763442076543,0.405504,3014.7,3014.3,0.8916427]
[1763442076705,0.405504,3014.7,3014.1,0.8916427]
[1763442076906,0.405504,3014.5,3014.1,0.8916427]
[1763442077101,0.1911,3014.9,3014.1,0.8916427]
[1763442077306,0.405504,3014.7,3014.1,0.8916427]
[1763442077547,0.4695,3014.6,3014.0,0.8926427]
[1763442077747,0.4695,3014.6,3014.1,0.8916427]
[1763442077955,0.1911,3014.9,3014.2,0.8916427]
[1763442078158,0.1911,3014.9,3014.6,0.8916427]
[1763442078649,0.4695,3015.5,3014.7,0.8916427]
[1763442078810,0.4695,3015.5,3014.9,0.8916427]
[1763442079349,0.4695,3015.5,3014.8,0.8916427]
[1763442079775,0.4695,3015.5,3014.9,0.8916427]
[1763442080071,0.7839,3015.1,3014.7,0.8916427]
[1763442080269,0.7839,3015.1,3014.0,0.001]
[1763442080270,0.1885,3014.8,3014.6,0.8916427]
[1763442080431,0.1885,3014.8,3014.5,0.8916427]
[1763442080978,0.4829,3014.7,3014.3,0.8916427]
[1763442081163,0.1885,3014.8,3014.4,0.8916427]
[1763442081321,0.4829,3014.7,3014.4,0.8916427]
[1763442082428,0.4829,3014.7,3014.3,0.8916427]
[1763442083260,0.1885,3014.8,3014.3,0.8916427]
[1763442083489,0.1885,3014.8,3014.4,0.8916427]
[1763442083655,0.1885,3014.8,3014.5,0.8916427]
[1763442084822,0.4829,3014.7,3014.5,0.8916427]
[1763442085230,3.30499264,3014.6,3014.3,0.8916427]
[1763442085634,2.8809,3014.6,3014.3,0.8916427]
[1763442085932,1.38989264,3014.5,3014.1,0.8916427]
[1763442086428,0.4829,3014.4,3014.1,0.8916427]
[1763442086624,0.301,3014.3,3014.1,0.8916427]
[1763442087477,0.301,3014.3,3014.2,0.8916427]
[1763442088124,0.7839,3014.3,3014.1,0.8916427]
[1763442088328,0.405504,3014.2,3014.0,0.8926427]
[1763442088555,0.888404,3014.2,3014.0,0.001]
[1763442088967,0.888404,3014.1,3014.0,0.001]
[1763442090222,0.405504,3014.0,3013.5,0.001]
[1763442090427,1.31249664,3013.5,3013.2,0.001]
[1763442090625,1.31249664,3013.5,3012.5,0.001]
[1763442090626,0.405504,3013.3,3012.5,0.001]
[1763442090856,7.81104612,3013.0,3012.5,0.001]
[1763442091258,8.29394612,3013.0,3012.5,0.001]
[1763442093252,1.31249664,3012.9,3012.5,0.001]
[1763442093452,0.585204,3012.6,3012.5,0.001]
[1763442093655,1.369104,3012.6,3012.5,0.001]
[1763442093854,0.4807,3012.6,3012.5,0.001]
[1763442094169,1.369104,3012.6,3012.5,0.001]
[1763442094353,1.53590432,3012.6,3012.5,0.001]
[1763442094752,1.369104,3012.6,3012.5,0.001]
[1763442095069,0.405504,3012.5,3011.7,0.001]
[1763442095386,7.99954612,3011.8,3011.7,0.001]
[1763442095535,8.30054612,3011.8,3011.7,0.001]
[1763442095730,8.78344612,3011.8,3011.7,0.001]
[1763442096066,8.78344612,3011.8,3009.9,0.8916427]
[1763442096067,1.66000586,3011.6,3009.9,0.8916427]
[1763442096315,7.87645348,3011.8,3009.0,0.6559]
[1763442096316,0.90699264,3009.9,3009.0,0.6559]
[1763442096612,0.301,3009.8,3009.0,1.5475427]
[1763442096818,0.301,3009.8,3009.0,0.6559]
[1763442097019,0.301,3009.8,3009.0,0.1828]
[1763442097218,0.301,3009.8,3009.0,0.6559]
[1763442097414,0.301,3009.8,3009.0,0.1828]
[1763442097820,0.301,3009.8,3008.8,1.05913496]
[1763442097821,0.882504,3009.7,3008.5,0.8916427]
[1763442098020,1.78949664,3009.7,3008.4,0.1828]
[1763442098205,0.405504,3009.5,3008.4,0.1828]
[1763442098386,0.90699264,3009.7,3008.5,0.4731]
[1763442098716,0.301,3009.6,3008.5,0.4731]
[1763442100522,0.301,3009.6,3008.2,0.87061262]
[1763442100523,0.90699264,3009.2,3008.2,0.4731]
[1763442102322,1.38399264,3009.2,3008.1,0.87071747]
[1763442102733,0.301,3009.6,3008.2,0.4731]
[1763442105259,2.402,3009.5,3008.2,0.4731]
[1763442105402,2.402,3009.5,3008.3,0.1828]
[1763442105603,0.477,3009.4,3008.3,0.1828]
[1763442105807,0.477,3009.4,3008.1,0.87171747]
[1763442105808,6.49854948,3008.5,3008.1,0.001]
[1763442106006,1.20799264,3008.4,3008.1,0.001]
[1763442106408,0.477,3008.3,3008.1,0.001]
[1763442106732,1.20799264,3008.4,3008.1,0.001]
[1763442106932,0.301,3008.3,3008.1,0.1545]
[1763442107131,0.301,3008.3,3008.1,0.001]
[1763442107541,0.778,3008.3,3008.1,0.001]
[1763442107840,0.778,3008.3,3007.5,0.001]
[1763442107841,0.405504,3007.8,3007.5,0.001]
[1763442108025,0.405504,3007.6,3007.5,0.001]
[1763442108415,0.882504,3007.6,3007.5,0.001]
[1763442108855,7.12814766,3007.6,3007.5,0.001]
[1763442109164,8.0351403,3007.6,3007.5,0.001]
[1763442109359,0.405504,3007.4,3006.0,0.4731]
[1763442109654,0.90699264,3006.9,3005.9,0.1828]
[1763442110017,1.09789264,3006.9,3005.9,0.1828]
[1763442110820,1.57489264,3006.9,3005.9,0.1828]
[1763442111036,1.20799264,3007.3,3006.0,0.4731]
[1763442111360,0.301,3007.3,3006.0,0.4731]
[1763442111924,0.301,3007.3,3006.1,0.03326569]
[1763442112122,0.301,3007.3,3007.2,0.1828]
[1763442112543,0.301,3007.3,3007.2,0.6559]
[1763442114052,0.301,3007.3,3007.2,0.1828]
[1763442114457,0.301,3007.3,3007.1,0.1828]
[1763442114822,0.301,3007.3,3007.2,0.4731]
[1763442115034,0.301,3007.3,3007.1,0.1828]
[1763442115382,2.402,3007.2,3007.1,0.1828]
[1763442115940,0.301,3007.3,3007.1,0.1828]
[1763442116171,0.301,3007.3,3007.1,0.6559]
[1763442116556,0.301,3007.3,3007.2,0.4731]
[1763442116876,0.301,3007.3,3007.1,0.1828]
[1763442117257,0.301,3007.3,3007.1,0.6559]
[1763442117653,6.43884366,3008.8,3007.2,0.50635352]
[1763442117864,0.301,3008.7,3007.2,0.4731]
[1763442118583,0.90699264,3008.3,3007.1,0.1828]
[1763442119244,0.90699264,3008.3,3007.1,0.6559]
[1763442119447,1.68499264,3008.7,3007.1,0.6559]
[1763442119675,1.68499264,3008.7,3007.2,0.4731]
[1763442119878,0.477,3008.6,3007.2,0.4731]
[1763442120249,0.477,3008.6,3007.1,0.1828]
[1763442120250,0.90699264,3008.3,3007.1,0.1828]
[1763442120447,0.90699264,3007.9,3007.1,0.1828]
[1763442120790,0.301,3007.8,3006.6,0.8916427]
[1763442120989,0.90699264,3007.5,3006.3,0.8916427]
[1763442121156,0.90699264,3007.5,3006.0,0.8916427]
[1763442121346,1.38399264,3007.5,3006.1,1.3647427]
[1763442121546,0.90699264,3007.5,3006.1,1.3647427]
[1763442121782,0.90699264,3007.5,3006.2,0.50636458]
[1763442122077,1.38399264,3007.5,3006.2,1.3647427]
[1763442122282,0.90699264,3007.5,3006.3,0.8916427]
[1763442122455,0.90699264,3007.5,3006.4,0.8916427]
[1763442122786,0.1932,3008.5,3007.4,0.1828]
[1763442122991,4.48591674,3010.8,3007.5,0.5063502]
[1763442122992,0.301,3008.4,3007.5,0.5063502]
[1763442123149,0.301,3008.4,3007.9,0.8916427]
[1763442123483,1.68499264,3008.4,3007.4,1.0744427]
[1763442123666,1.68499264,3008.4,3007.5,0.8916427]
[1763442123985,1.68499264,3008.4,3007.4,1.0744427]
[1763442123986,0.002,3008.3,3007.4,1.0744427]
[1763442124145,0.002,3008.3,3007.5,0.8916427]
[1763442124697,0.477,3008.2,3007.6,0.8916427]
[1763442125002,0.90699264,3008.0,3007.3,0.8916427]
[1763442125149,0.90699264,3008.0,3007.4,0.8916427]
[1763442125347,0.002,3008.3,3007.5,0.8916427]
[1763442125585,0.301,3007.9,3007.7,1.18691338]
[1763442125898,0.301,3007.9,3007.8,0.89303039]
[1763442126053,0.4876,3007.9,3007.7,0.89303039]
[1763442126384,0.4876,3007.9,3007.6,0.89303039]
[1763442126762,0.405504,3007.7,3007.6,0.89303039]
[1763442126995,0.90699264,3007.8,3007.3,0.89303039]
[1763442127144,0.4828,3007.7,3007.3,0.89303039]
[1763442127344,0.4876,3007.9,3007.3,0.89303039]
[1763442127547,0.4876,3007.9,3007.4,0.89303039]
[1763442127788,0.4828,3007.8,3007.3,0.89303039]
[1763442127972,0.4876,3007.9,3007.5,0.89303039]
[1763442128349,0.4876,3007.9,3007.3,0.89303039]
[1763442128350,0.888304,3007.8,3007.3,0.89303039]
[1763442128578,0.888304,3007.8,3007.2,0.89303039]
[1763442128788,0.405504,3007.8,3007.2,0.89303039]
[1763442128989,0.405504,3007.6,3007.1,0.89303039]
[1763442129188,0.405504,3007.6,3007.2,0.89303039]
[1763442129378,0.405504,3007.6,3007.1,0.89303039]
[1763442129693,0.405504,3007.6,3007.2,0.89303039]
[1763442130083,0.4828,3007.6,3007.3,0.89303039]
[1763442130407,0.405504,3007.8,3006.4,2.82494467]
[1763442130408,0.405504,3007.8,3007.2,0.89303039]
[1763442130712,0.405504,3007.8,3007.4,0.89303039]
[1763442130873,0.405504,3007.8,3007.3,0.89303039]
[1763442131275,0.90699264,3007.5,3007.2,0.89303039]
[1763442131487,0.90699264,3007.5,3006.0,3.61563075]
[1763442131488,0.405504,3007.4,3007.1,0.89303039]
[1763442131701,0.405504,3007.4,3007.0,0.89303039]
[1763442132202,0.888304,3007.4,3007.0,0.89303039]
[1763442132605,0.4876,3007.9,3006.8,1.18691338]
[1763442132606,1.31249664,3007.1,3006.8,0.89303039]
[1763442132813,0.1741,3006.9,3006.8,0.89303039]
[1763442133097,0.579604,3006.9,3006.8,0.89303039]
[1763442133271,1.062404,3006.9,3006.6,0.89303039]
[1763442133459,0.4828,3006.8,3006.6,0.89303039]
[1763442133661,0.4828,3006.8,3006.4,1.18691338]
[1763442133662,1.31249664,3006.7,3006.4,0.89303039]
[1763442133898,1.31249664,3006.7,3006.1,0.89303039]
[1763442134064,0.405504,3006.5,3006.1,0.89303039]
[1763442134268,0.405504,3006.5,3006.0,0.001]
[1763442134269,0.405504,3006.5,3006.2,0.89303039]
[1763442134596,0.4828,3006.4,3006.1,0.89303039]
[1763442134769,1.31249664,3006.3,3006.1,0.89303039]
[1763442134964,1.31249664,3006.3,3006.0,0.001]
[1763442134965,0.301,3006.2,3006.0,0.89403039]
[1763442135201,0.706504,3006.2,3006.1,0.89303039]
[1763442135415,0.05,3008.4,3006.1,0.89303039]
[1763442135416,6.24564366,3007.2,3006.1,0.6054]
[1763442135700,0.405504,3007.0,3006.5,0.89672989]
[1763442135865,0.405504,3007.0,3006.6,0.89672989]
[1763442136066,0.1866,3006.9,3006.6,0.89672989]
[1763442136762,0.301,3007.1,3006.6,0.89672989]
[1763442136968,0.301,3007.1,3006.8,0.89672989]
[1763442137206,0.7838,3007.1,3006.8,0.89672989]
[1763442137574,0.301,3007.1,3007.0,0.89672989]
[1763442137903,1.69079264,3007.1,3006.8,0.89679994]
[1763442138104,0.1866,3006.9,3006.6,0.89679994]
[1763442138410,0.1866,3006.9,3006.0,0.001]
[1763442138411,0.405504,3006.6,3006.5,0.89679994]
[1763442138585,0.405504,3006.6,3006.3,0.89679994]
[1763442138779,0.888304,3006.6,3006.3,0.89679994]
[1763442138981,6.24564366,3006.8,3006.3,0.89679994]
[1763442138982,0.405504,3006.8,3006.3,0.89679994]
[1763442139182,0.405504,3006.8,3006.2,2.09243979]
[1763442139381,0.405504,3006.8,3006.4,0.89679994]
[1763442140084,0.897104,3006.8,3006.3,0.89679994]
[1763442140677,0.405504,3006.8,3006.4,0.89679994]
[1763442140882,6.73724366,3007.6,3006.6,1.19563985]
[1763442141119,6.73724366,3007.6,3006.6,0.89644728]
[1763442141120,0.90699264,3006.7,3006.6,0.89644728]
[1763442141278,1.20699264,3006.7,3006.5,0.89644728]
[1763442141587,1.20699264,3006.7,3006.4,0.89644728]
[1763442141588,0.3,3006.7,3006.4,0.89644728]
[1763442141789,0.405504,3006.6,3006.4,0.89644728]
[1763442142122,0.405504,3006.5,3006.3,0.89644728]
[1763442142314,0.90699264,3006.6,3006.5,0.001]
[1763442142905,0.405504,3007.1,3006.5,0.001]
[1763442142906,0.4916,3007.5,3006.5,0.89744728]
[1763442143076,0.3,3007.4,3006.6,0.89644728]
[1763442143602,0.3,3007.4,3006.5,0.001]
[1763442143603,0.5233113,3007.3,3006.7,0.89644728]
[1763442143801,0.5233113,3007.3,3006.8,0.89644728]
[1763442144001,0.5233113,3007.3,3006.7,0.89644728]
[1763442144217,0.405504,3007.2,3006.7,0.89644728]
[1763442144390,0.405504,3007.2,3006.5,1.19663985]
[1763442144391,0.90699264,3006.7,3006.5,0.89744728]
[1763442144590,0.3,3006.6,3006.5,0.001]
[1763442145298,2.90059264,3006.6,3006.5,0.001]
[1763442145727,2.10409664,3006.6,3006.5,0.001]
[1763442147041,1.61249664,3006.6,3005.6,1.19563985]
[1763442147194,1.61249664,3006.6,3004.2,4.07199024]
[1763442147195,1.67199187,3005.0,3004.2,4.07199024]
[1763442147515,1.67199187,3005.0,3003.1,0.1954]
[1763442147516,0.405504,3004.1,3003.1,0.1954]
[1763442147674,0.405504,3003.9,3003.1,0.1954]
[1763442147883,0.71570062,3004.1,3003.2,0.03329781]
[1763442148208,0.89484269,3003.6,3003.1,0.1954]
[1763442148513,0.405504,3003.1,3002.3,0.1954]
[1763442148738,0.405504,3003.1,3001.6,0.001]
[1763442148739,0.90699264,3002.8,3001.7,0.1954]
[1763442148909,0.71570062,3002.8,3001.7,0.6736]
[1763442149078,1.19484269,3003.0,3001.7,0.6736]
[1763442149279,1.01570062,3003.0,3001.8,0.51151334]
[1763442149518,0.71570062,3003.1,3002.9,0.1954]
[1763442149816,0.89484269,3004.0,3003.0,0.4782]
[1763442150029,0.3,3003.9,3003.0,0.51150003]
[1763442150184,0.3,3003.9,3003.1,0.03329892]
[1763442150703,0.3,3003.9,3002.9,0.1954]
[1763442150704,0.3,3003.9,3003.2,0.4782]
[1763442152603,0.3,3003.9,3003.3,0.0332967]
[1763442152835,0.3,3003.9,3003.2,0.4782]
[1763442153425,6.24564366,3005.4,3003.3,0.405504]
[1763442153646,0.90699264,3004.9,3003.4,0.4782]
[1763442154153,1.06129264,3004.9,3003.4,0.4782]
[1763442154836,0.3,3005.3,3003.5,0.03329448]
[1763442155022,0.90699264,3005.2,3003.4,0.4782]
[1763442155228,6.24564366,3004.5,3003.4,0.4782]
[1763442155535,1.20699264,3004.4,3003.4,0.4782]
[1763442156041,0.3,3004.4,3003.4,0.4782]
[1763442156342,0.90699264,3004.2,3003.4,0.4782]
[1763442156550,0.90699264,3004.3,3003.4,0.4782]
[1763442156844,0.3,3004.4,3004.1,0.1955]
[1763442157204,0.3,3004.4,3004.2,0.4876]
[1763442157609,0.3,3004.4,3004.1,0.1955]
[1763442157924,0.3,3004.4,3004.2,0.4876]
[1763442161714,0.3,3004.4,3004.1,0.1955]
[1763442162116,0.3,3004.4,3004.1,0.6831]
[1763442162530,0.3,3004.4,3004.2,0.4876]
[1763442164828,0.3,3004.4,3004.1,0.1955]
[1763442165021,0.3,3004.4,3004.1,0.6831]
[1763442165222,2.406,3004.3,3004.1,0.6831]
[1763442165450,2.10999264,3004.3,3004.2,0.4876]
[1763442165630,0.90699264,3004.3,3003.4,0.001]
[1763442165957,0.90699264,3004.3,3003.6,0.1955]
[1763442166141,0.90699264,3004.3,3003.6,0.6831]
[1763442166735,0.90699264,3004.3,3003.7,0.4876]
[1763442167554,0.90699264,3004.3,3003.6,0.1955]
[1763442168130,1.43073292,3004.2,3003.6,0.1955]
[1763442168329,0.52374028,3004.2,3003.6,0.1955]
[1763442168721,0.90699264,3004.1,3003.4,0.001]
[1763442169369,0.52374028,3004.2,3003.5,0.4876]
[1763442169949,0.52374028,3004.2,3003.4,0.001]
[1763442170144,1.43073292,3004.2,3003.4,0.001]